[Event "December 19 Late 2023"]
[Site "https://www.chess.com"]
[Date "2023.12.19"]
[Round "5"]
[White "Kazmaier, Daniel"]
[Black "Zeynalli, Rashad"]
[Result "1-0"]
[Board "45"]
[TimeControl "180+1"]
[WhiteFideId "2606089"]
[BlackFideId "13403320"]
[WhiteElo "2471"]
[BlackElo "2088"]
[WhiteTeam "CAN"]
[BlackTeam "AZE"]
[WhiteClock "0:00:11"]
[BlackClock "0:00:02"]

1. d4 {[%clk 0:02:59]}  Nf6 {[%clk 0:02:59]} 2. Bg5 {[%clk 0:02:58]}  Ne4 {[%clk 0:02:55]} 3. Bf4 {[%clk 0:02:58]}  c5 {[%clk 0:02:54]} 4. f3 {[%clk 0:02:55]}  Nf6 {[%clk 0:02:47]} 5. c3 {[%clk 0:02:52]}  Qb6 {[%clk 0:02:45]} 6. Qb3 {[%clk 0:02:46]}  cxd4 {[%clk 0:02:39]} 7. Qxb6 {[%clk 0:02:37]}  axb6 {[%clk 0:02:40]} 8. Bxb8 {[%clk 0:02:36]}  dxc3 {[%clk 0:02:26]} 9. Nxc3 {[%clk 0:02:23]}  Rxb8 {[%clk 0:02:25]} 10. e4 {[%clk 0:02:09]}  e5 {[%clk 0:02:03]} 11. Bb5 {[%clk 0:01:46]}  Bc5 {[%clk 0:01:55]} 12. O-O-O {[%clk 0:01:41]}  O-O {[%clk 0:01:51]} 13. Nge2 {[%clk 0:01:40]}  d6 {[%clk 0:01:49]} 14. Rd3 {[%clk 0:01:35]}  Be6 {[%clk 0:01:45]} 15. a3 {[%clk 0:01:32]}  Rfc8 {[%clk 0:01:10]} 16. Kc2 {[%clk 0:01:14]}  d5 {[%clk 0:01:09]} 17. b4 {[%clk 0:00:57]}  Be7 {[%clk 0:00:54]} 18. Kb2 {[%clk 0:00:51]}  d4 {[%clk 0:00:47]} 19. Na4 {[%clk 0:00:51]}  Bd8 {[%clk 0:00:38]} 20. g3 {[%clk 0:00:45]}  Ra8 {[%clk 0:00:32]} 21. Re1 {[%clk 0:00:42]}  Bc4 {[%clk 0:00:19]} 22. Bxc4 {[%clk 0:00:41]}  Rxc4 {[%clk 0:00:20]} 23. Kb3 {[%clk 0:00:41]}  Rc6 {[%clk 0:00:19]} 24. Nb2 {[%clk 0:00:41]}  Rac8 {[%clk 0:00:19]} 25. f4 {[%clk 0:00:38]}  Nxe4 {[%clk 0:00:12]} 26. fxe5 {[%clk 0:00:38]}  Nf2 {[%clk 0:00:11]} 27. Rf3 {[%clk 0:00:36]}  Ng4 {[%clk 0:00:10]} 28. Nxd4 {[%clk 0:00:36]}  Rh6 {[%clk 0:00:09]} 29. h4 {[%clk 0:00:34]}  g5 {[%clk 0:00:06]} 30. e6 {[%clk 0:00:32]}  fxe6 {[%clk 0:00:06]} 31. Nxe6 {[%clk 0:00:33]}  Be7 {[%clk 0:00:04]} 32. Nxg5 {[%clk 0:00:30]}  Bxg5 {[%clk 0:00:04]} 33. hxg5 {[%clk 0:00:31]}  Rhc6 {[%clk 0:00:03]} 34. Na4 {[%clk 0:00:30]}  Nh2 {[%clk 0:00:02]} 35. Rfe3 {[%clk 0:00:28]}  Ng4 {[%clk 0:00:02]} 36. Re8+ {[%clk 0:00:28]}  Rxe8 {[%clk 0:00:02]} 37. Rxe8+ {[%clk 0:00:28]}  Kf7 {[%clk 0:00:03]} 38. Rh8 {[%clk 0:00:27]}  Kg6 {[%clk 0:00:03]} 39. Rg8+ {[%clk 0:00:26]}  Kf5 {[%clk 0:00:04]} 40. b5 {[%clk 0:00:25]}  Rg6 {[%clk 0:00:03]} 41. Rh8 {[%clk 0:00:21]}  Kxg5 {[%clk 0:00:03]} 42. Rxh7 {[%clk 0:00:22]}  Nf6 {[%clk 0:00:03]} 43. Rxb7 {[%clk 0:00:21]}  Ne4 {[%clk 0:00:03]} 44. Rxb6 {[%clk 0:00:20]}  Rg8 {[%clk 0:00:02]} 45. Rc6 {[%clk 0:00:19]}  Kf5 {[%clk 0:00:02]} 46. Nc5 {[%clk 0:00:18]}  Rxg3+ {[%clk 0:00:01]} 47. Kb4 {[%clk 0:00:18]}  Nf2 {[%clk 0:00:01]} 48. a4 {[%clk 0:00:17]}  Ke5 {[%clk 0:00:01]} 49. Nd7+ {[%clk 0:00:17]}  Kd5 {[%clk 0:00:02]} 50. Nf6+ {[%clk 0:00:16]}  Ke5 {[%clk 0:00:01]} 51. Nd7+ {[%clk 0:00:15]}  Kd5 {[%clk 0:00:02]} 52. Nb6+ {[%clk 0:00:16]}  Ke5 {[%clk 0:00:02]} 53. Rc4 {[%clk 0:00:16]}  Nd3+ {[%clk 0:00:02]} 54. Ka5 {[%clk 0:00:16]}  Nb2 {[%clk 0:00:02]} 55. Rc5+ {[%clk 0:00:16]}  Kd6 {[%clk 0:00:02]} 56. Rc6+ {[%clk 0:00:16]}  Ke7 {[%clk 0:00:03]} 57. Ka6 {[%clk 0:00:14]}  Ra3 {[%clk 0:00:03]} 58. a5 {[%clk 0:00:14]}  Kd8 {[%clk 0:00:03]} 59. Rc8+ {[%clk 0:00:14]}  Ke7 {[%clk 0:00:03]} 60. Rc7+ {[%clk 0:00:15]}  Kd6 {[%clk 0:00:04]} 61. Rc2 {[%clk 0:00:15]}  Nd3 {[%clk 0:00:03]} 62. Rd2 {[%clk 0:00:14]}  Kc5 {[%clk 0:00:02]} 63. Nd7+ {[%clk 0:00:12]}  Kc4 {[%clk 0:00:02]} 64. Rxd3 {[%clk 0:00:10]}  Rxd3 {[%clk 0:00:01]} 65. Ne5+ {[%clk 0:00:09]}  Kd4 {[%clk 0:00:02]} 66. Nxd3 {[%clk 0:00:10]}  Kxd3 {[%clk 0:00:02]} 67. Kb7 {[%clk 0:00:11]} 1-0

[Event "December 19 Late 2023"]
[Site "https://www.chess.com"]
[Date "2023.12.19"]
[Round "5"]
[White "Dobrikov, Marco"]
[Black "Delorme, Axel"]
[Result "0-1"]
[Board "46"]
[TimeControl "180+1"]
[WhiteFideId "12950378"]
[BlackFideId "632023"]
[WhiteElo "2394"]
[BlackElo "2478"]
[WhiteTeam "GER"]
[BlackTeam "FRA"]
[WhiteClock "0:00:31"]
[BlackClock "0:00:23"]

1. c4 {[%clk 0:02:59]}  e6 {[%clk 0:02:59]} 2. d4 {[%clk 0:02:59]}  d5 {[%clk 0:03:00]} 3. Nf3 {[%clk 0:02:58]}  c6 {[%clk 0:03:00]} 4. Nc3 {[%clk 0:02:56]}  dxc4 {[%clk 0:02:59]} 5. a4 {[%clk 0:02:54]}  Bb4 {[%clk 0:02:58]} 6. e3 {[%clk 0:02:54]}  b5 {[%clk 0:02:59]} 7. Bd2 {[%clk 0:02:52]}  a5 {[%clk 0:03:00]} 8. b3 {[%clk 0:02:52]}  Bxc3 {[%clk 0:02:59]} 9. Bxc3 {[%clk 0:02:50]}  b4 {[%clk 0:02:59]} 10. Bd2 {[%clk 0:02:47]}  c3 {[%clk 0:02:58]} 11. Bc1 {[%clk 0:02:47]}  Nf6 {[%clk 0:02:58]} 12. Bd3 {[%clk 0:02:43]}  O-O {[%clk 0:02:55]} 13. e4 {[%clk 0:02:44]}  Ba6 {[%clk 0:02:53]} 14. Bg5 {[%clk 0:02:39]}  Bxd3 {[%clk 0:02:48]} 15. Qxd3 {[%clk 0:02:40]}  h6 {[%clk 0:02:47]} 16. Bh4 {[%clk 0:02:33]}  Qc7 {[%clk 0:02:17]} 17. Bxf6 {[%clk 0:02:29]}  gxf6 {[%clk 0:02:18]} 18. Qe3 {[%clk 0:02:24]}  Kg7 {[%clk 0:02:13]} 19. h4 {[%clk 0:02:23]}  Nd7 {[%clk 0:02:08]} 20. Rh3 {[%clk 0:02:24]}  Rg8 {[%clk 0:02:07]} 21. O-O-O {[%clk 0:02:19]}  Kh7 {[%clk 0:01:51]} 22. g3 {[%clk 0:02:00]}  c5 {[%clk 0:01:40]} 23. dxc5 {[%clk 0:01:35]}  Nxc5 {[%clk 0:01:37]} 24. Nd4 {[%clk 0:01:36]}  Rad8 {[%clk 0:01:31]} 25. Kc2 {[%clk 0:01:33]}  Qe5 {[%clk 0:01:22]} 26. Nc6 {[%clk 0:01:23]}  Rxd1 {[%clk 0:01:02]} 27. Nxe5 {[%clk 0:01:23]}  Rd2+ {[%clk 0:01:02]} 28. Qxd2 {[%clk 0:01:09]}  cxd2 {[%clk 0:01:03]} 29. Nc4 {[%clk 0:01:02]}  Nxe4 {[%clk 0:00:59]} 30. f3 {[%clk 0:00:58]}  Rd8 {[%clk 0:00:49]} 31. Ne3 {[%clk 0:00:34]}  Nf2 {[%clk 0:00:40]} 32. Rh2 {[%clk 0:00:34]}  d1=Q+ {[%clk 0:00:33]} 33. Nxd1 {[%clk 0:00:34]}  Nxd1 {[%clk 0:00:33]} 34. Re2 {[%clk 0:00:35]}  Nc3 {[%clk 0:00:31]} 35. Re3 {[%clk 0:00:36]}  Kg6 {[%clk 0:00:30]} 36. g4 {[%clk 0:00:36]}  e5 {[%clk 0:00:28]} 37. f4 {[%clk 0:00:36]}  exf4 {[%clk 0:00:25]} 38. Rf3 {[%clk 0:00:36]}  Rd4 {[%clk 0:00:24]} 39. Rf1 {[%clk 0:00:33]}  f5 {[%clk 0:00:24]} 40. g5 {[%clk 0:00:32]}  hxg5 {[%clk 0:00:23]} 41. Rg1 {[%clk 0:00:31]}  g4 {[%clk 0:00:23]} 0-1

[Event "December 19 Late 2023"]
[Site "https://www.chess.com"]
[Date "2023.12.19"]
[Round "5"]
[White "Zhu, Jiner"]
[Black "Obon Temprano, Sergi"]
[Result "1-0"]
[Board "48"]
[TimeControl "180+1"]
[WhiteFideId "8608059"]
[BlackFideId "2226545"]
[WhiteElo "2384"]
[BlackElo "2135"]
[WhiteTeam "CHN"]
[BlackTeam "ESP"]
[WhiteClock "0:02:05"]
[BlackClock "0:02:01"]

1. Nf3 {[%clk 0:03:00]}  d5 {[%clk 0:02:57]} 2. g3 {[%clk 0:02:59]}  Nf6 {[%clk 0:02:56]} 3. Bg2 {[%clk 0:03:00]}  c6 {[%clk 0:02:56]} 4. b3 {[%clk 0:03:00]}  Bg4 {[%clk 0:02:53]} 5. Bb2 {[%clk 0:02:58]}  Nbd7 {[%clk 0:02:53]} 6. c4 {[%clk 0:02:59]}  e6 {[%clk 0:02:53]} 7. O-O {[%clk 0:02:58]}  Be7 {[%clk 0:02:52]} 8. d3 {[%clk 0:02:58]}  O-O {[%clk 0:02:51]} 9. Nbd2 {[%clk 0:02:58]}  h6 {[%clk 0:02:50]} 10. Rc1 {[%clk 0:02:55]}  a5 {[%clk 0:02:50]} 11. a4 {[%clk 0:02:52]}  Bb4 {[%clk 0:02:39]} 12. h3 {[%clk 0:02:52]}  Bxf3 {[%clk 0:02:36]} 13. Nxf3 {[%clk 0:02:48]}  Bd6 {[%clk 0:02:35]} 14. Qc2 {[%clk 0:02:46]}  Qe7 {[%clk 0:02:34]} 15. e4 {[%clk 0:02:44]}  dxe4 {[%clk 0:02:32]} 16. dxe4 {[%clk 0:02:45]}  e5 {[%clk 0:02:32]} 17. Nh4 {[%clk 0:02:44]}  Bc7 {[%clk 0:02:24]} 18. Nf5 {[%clk 0:02:43]}  Qe6 {[%clk 0:02:20]} 19. Rce1 {[%clk 0:02:27]}  Rfd8 {[%clk 0:02:19]} 20. f4 {[%clk 0:02:27]}  Nf8 {[%clk 0:02:16]} 21. Qf2 {[%clk 0:02:24]}  exf4 {[%clk 0:02:11]} 22. gxf4 {[%clk 0:02:23]}  Qd7 {[%clk 0:02:09]} 23. Bxf6 {[%clk 0:02:08]}  gxf6 {[%clk 0:02:06]} 24. Nxh6+ {[%clk 0:02:08]}  Kh7 {[%clk 0:02:06]} 25. Ng4 {[%clk 0:02:04]}  Ng6 {[%clk 0:02:01]} 26. Nxf6+ {[%clk 0:02:05]} 1-0

[Event "December 19 Late 2023"]
[Site "https://www.chess.com"]
[Date "2023.12.19"]
[Round "5"]
[White "Khlebovich, Alexander"]
[Black "Grutter, Tim"]
[Result "1-0"]
[Board "50"]
[TimeControl "180+1"]
[WhiteFideId "4169123"]
[BlackFideId "1057472"]
[WhiteElo "2334"]
[BlackElo "2303"]
[WhiteTeam "RUS"]
[BlackTeam "NED"]
[WhiteClock "0:00:15"]
[BlackClock "0:00:00"]

1. d4 {[%clk 0:03:00]}  a6 {[%clk 0:02:56]} 2. a4 {[%clk 0:02:56]}  Nf6 {[%clk 0:02:54]} 3. g3 {[%clk 0:02:54]}  e6 {[%clk 0:02:54]} 4. Bg2 {[%clk 0:02:54]}  c5 {[%clk 0:02:51]} 5. Nf3 {[%clk 0:02:54]}  Be7 {[%clk 0:02:48]} 6. O-O {[%clk 0:02:54]}  O-O {[%clk 0:02:49]} 7. b3 {[%clk 0:02:54]}  Nc6 {[%clk 0:02:49]} 8. Bb2 {[%clk 0:02:54]}  d6 {[%clk 0:02:47]} 9. Nbd2 {[%clk 0:02:52]}  Qc7 {[%clk 0:02:47]} 10. e4 {[%clk 0:02:49]}  cxd4 {[%clk 0:02:47]} 11. Nxd4 {[%clk 0:02:50]}  Bd7 {[%clk 0:02:43]} 12. Nc4 {[%clk 0:02:43]}  Rad8 {[%clk 0:02:19]} 13. a5 {[%clk 0:02:35]}  Qb8 {[%clk 0:02:08]} 14. Nb6 {[%clk 0:02:32]}  Nxd4 {[%clk 0:02:06]} 15. Qxd4 {[%clk 0:02:30]}  Bc6 {[%clk 0:02:03]} 16. c4 {[%clk 0:02:25]}  Rfe8 {[%clk 0:01:58]} 17. Rfd1 {[%clk 0:02:23]}  Bf8 {[%clk 0:01:57]} 18. h3 {[%clk 0:02:18]}  Nd7 {[%clk 0:01:51]} 19. Nxd7 {[%clk 0:02:02]}  Rxd7 {[%clk 0:01:46]} 20. b4 {[%clk 0:01:58]}  Rc8 {[%clk 0:01:26]} 21. Bf1 {[%clk 0:01:32]}  Rdd8 {[%clk 0:01:21]} 22. b5 {[%clk 0:01:31]}  Be8 {[%clk 0:01:20]} 23. Qe3 {[%clk 0:01:26]}  d5 {[%clk 0:00:30]} 24. exd5 {[%clk 0:01:25]}  exd5 {[%clk 0:00:30]} 25. Be5 {[%clk 0:01:18]}  Qa8 {[%clk 0:00:20]} 26. bxa6 {[%clk 0:01:12]}  bxa6 {[%clk 0:00:21]} 27. cxd5 {[%clk 0:01:08]}  Rxd5 {[%clk 0:00:20]} 28. Rxd5 {[%clk 0:00:53]}  Qxd5 {[%clk 0:00:21]} 29. Bg2 {[%clk 0:00:53]}  Qc5 {[%clk 0:00:17]} 30. Bd4 {[%clk 0:00:52]}  Qb4 {[%clk 0:00:14]} 31. Bb6 {[%clk 0:00:43]}  Bc6 {[%clk 0:00:12]} 32. Bxc6 {[%clk 0:00:42]}  Rxc6 {[%clk 0:00:13]} 33. Rd1 {[%clk 0:00:37]}  Rc8 {[%clk 0:00:06]} 34. Qd3 {[%clk 0:00:36]}  Qa4 {[%clk 0:00:02]} 35. Re1 {[%clk 0:00:32]}  Ra8 {[%clk 0:00:02]} 36. h4 {[%clk 0:00:28]}  Re8 {[%clk 0:00:02]} 37. Rxe8 {[%clk 0:00:25]}  Qxe8 {[%clk 0:00:03]} 38. Qxa6 {[%clk 0:00:25]}  h5 {[%clk 0:00:02]} 39. Qd3 {[%clk 0:00:23]}  Qc6 {[%clk 0:00:01]} 40. Be3 {[%clk 0:00:21]}  Bc5 {[%clk 0:00:01]} 41. Qc4 {[%clk 0:00:20]}  Qf3 {[%clk 0:00:01]} 42. Qxc5 {[%clk 0:00:20]}  Qd1+ {[%clk 0:00:01]} 43. Kh2 {[%clk 0:00:21]}  Qa1 {[%clk 0:00:02]} 44. Qb6 {[%clk 0:00:18]}  Kh7 {[%clk 0:00:02]} 45. a6 {[%clk 0:00:19]}  g5 {[%clk 0:00:01]} 46. hxg5 {[%clk 0:00:17]}  Qa2 {[%clk 0:00:01]} 47. Qh6+ {[%clk 0:00:17]}  Kg8 {[%clk 0:00:01]} 48. a7 {[%clk 0:00:16]}  f6 {[%clk 0:00:01]} 49. gxf6 {[%clk 0:00:15]}  Qf7 {[%clk 0:00:00]} 50. Qg7+ {[%clk 0:00:15]} 1-0

[Event "December 19 Late 2023"]
[Site "https://www.chess.com"]
[Date "2023.12.19"]
[Round "5"]
[White "Adla, Diego"]
[Black "Sadovsky, Artem"]
[Result "1-0"]
[Board "53"]
[TimeControl "180+1"]
[WhiteFideId "100072"]
[BlackFideId "4155840"]
[WhiteElo "2377"]
[BlackElo "2314"]
[WhiteTeam "ARG"]
[BlackTeam "FID"]
[WhiteClock "0:00:07"]
[BlackClock "0:00:00"]

1. c4 {[%clk 0:03:00]}  g6 {[%clk 0:03:00]} 2. Nc3 {[%clk 0:03:00]}  Bg7 {[%clk 0:03:01]} 3. d4 {[%clk 0:02:59]}  d6 {[%clk 0:03:02]} 4. e4 {[%clk 0:02:59]}  e5 {[%clk 0:03:02]} 5. dxe5 {[%clk 0:02:58]}  dxe5 {[%clk 0:03:03]} 6. Qxd8+ {[%clk 0:02:58]}  Kxd8 {[%clk 0:03:04]} 7. Be3 {[%clk 0:02:54]}  Be6 {[%clk 0:03:01]} 8. O-O-O+ {[%clk 0:02:52]}  Nd7 {[%clk 0:03:02]} 9. g3 {[%clk 0:02:51]}  c6 {[%clk 0:02:42]} 10. Bh3 {[%clk 0:02:49]}  Bxh3 {[%clk 0:02:32]} 11. Nxh3 {[%clk 0:02:48]}  Ke7 {[%clk 0:02:20]} 12. Kc2 {[%clk 0:02:39]}  Ngf6 {[%clk 0:02:17]} 13. f3 {[%clk 0:02:37]}  Rhd8 {[%clk 0:02:13]} 14. Nf2 {[%clk 0:02:37]}  Bf8 {[%clk 0:02:01]} 15. a3 {[%clk 0:02:31]}  Ke8 {[%clk 0:01:58]} 16. b4 {[%clk 0:02:29]}  a5 {[%clk 0:01:58]} 17. Kb3 {[%clk 0:02:26]}  Be7 {[%clk 0:01:48]} 18. Nd3 {[%clk 0:02:11]}  axb4 {[%clk 0:01:34]} 19. axb4 {[%clk 0:02:11]}  Ra6 {[%clk 0:01:33]} 20. Ra1 {[%clk 0:02:07]}  Rda8 {[%clk 0:01:32]} 21. Rxa6 {[%clk 0:02:07]}  Rxa6 {[%clk 0:01:33]} 22. Rd1 {[%clk 0:01:59]}  Ra8 {[%clk 0:01:21]} 23. c5 {[%clk 0:01:57]}  Bd8 {[%clk 0:00:55]} 24. Nb2 {[%clk 0:01:51]}  b6 {[%clk 0:00:50]} 25. Nc4 {[%clk 0:01:48]}  bxc5 {[%clk 0:00:50]} 26. bxc5 {[%clk 0:01:49]}  Rb8+ {[%clk 0:00:46]} 27. Kc2 {[%clk 0:01:46]}  Bc7 {[%clk 0:00:47]} 28. Nd6+ {[%clk 0:01:38]}  Bxd6 {[%clk 0:00:46]} 29. Rxd6 {[%clk 0:01:37]}  Rc8 {[%clk 0:00:42]} 30. f4 {[%clk 0:01:27]}  Ng4 {[%clk 0:00:30]} 31. Bg1 {[%clk 0:01:26]}  f6 {[%clk 0:00:24]} 32. h3 {[%clk 0:01:25]}  Nh6 {[%clk 0:00:24]} 33. Rd1 {[%clk 0:01:13]}  Nf7 {[%clk 0:00:20]} 34. Be3 {[%clk 0:01:12]}  Ke7 {[%clk 0:00:20]} 35. Ra1 {[%clk 0:01:11]}  Rc7 {[%clk 0:00:20]} 36. Ra8 {[%clk 0:01:10]}  Nd8 {[%clk 0:00:21]} 37. Kd3 {[%clk 0:01:07]}  Ne6 {[%clk 0:00:21]} 38. Kc4 {[%clk 0:01:06]}  Rb7 {[%clk 0:00:18]} 39. Rh8 {[%clk 0:01:02]}  Nef8 {[%clk 0:00:18]} 40. f5 {[%clk 0:00:57]}  g5 {[%clk 0:00:11]} 41. h4 {[%clk 0:00:52]}  Kf7 {[%clk 0:00:11]} 42. hxg5 {[%clk 0:00:51]}  Kg7 {[%clk 0:00:11]} 43. Rxf8 {[%clk 0:00:51]}  Kxf8 {[%clk 0:00:09]} 44. gxf6 {[%clk 0:00:45]}  Nxf6 {[%clk 0:00:10]} 45. Bg5 {[%clk 0:00:45]}  Kf7 {[%clk 0:00:07]} 46. Bc1 {[%clk 0:00:30]}  Rd7 {[%clk 0:00:07]} 47. Be3 {[%clk 0:00:27]}  Ng4 {[%clk 0:00:07]} 48. Bg5 {[%clk 0:00:21]}  Rd4+ {[%clk 0:00:07]} 49. Kb3 {[%clk 0:00:22]}  Nf6 {[%clk 0:00:06]} 50. Bxf6 {[%clk 0:00:20]}  Kxf6 {[%clk 0:00:06]} 51. Kc2 {[%clk 0:00:16]}  Rc4 {[%clk 0:00:07]} 52. Kd3 {[%clk 0:00:15]}  Rxc5 {[%clk 0:00:07]} 53. Nd1 {[%clk 0:00:16]}  Ra5 {[%clk 0:00:05]} 54. Ne3 {[%clk 0:00:16]}  Ra3+ {[%clk 0:00:05]} 55. Ke2 {[%clk 0:00:16]}  Kg5 {[%clk 0:00:04]} 56. Nc4 {[%clk 0:00:14]}  Rxg3 {[%clk 0:00:04]} 57. Nxe5 {[%clk 0:00:14]}  Kf4 {[%clk 0:00:04]} 58. f6 {[%clk 0:00:11]}  Rg8 {[%clk 0:00:03]} 59. Nd7 {[%clk 0:00:10]}  Kxe4 {[%clk 0:00:02]} 60. f7 {[%clk 0:00:10]}  Rd8 {[%clk 0:00:00]} 61. Nf6+ {[%clk 0:00:07]} 1-0

[Event "December 19 Late 2023"]
[Site "https://www.chess.com"]
[Date "2023.12.19"]
[Round "5"]
[White "Tanenbaum, Zachary"]
[Black "Chylewski, Patryk"]
[Result "1-0"]
[Board "54"]
[TimeControl "180+1"]
[WhiteFideId "2060850"]
[BlackFideId "1186191"]
[WhiteElo "2256"]
[BlackElo "2176"]
[WhiteTeam "USA"]
[BlackTeam "POL"]
[WhiteClock "0:01:18"]
[BlackClock "0:00:00"]

1. e4 {[%clk 0:03:00]}  c5 {[%clk 0:02:56]} 2. c3 {[%clk 0:03:00]}  d5 {[%clk 0:02:54]} 3. exd5 {[%clk 0:03:00]}  Qxd5 {[%clk 0:02:55]} 4. d4 {[%clk 0:03:00]}  Nc6 {[%clk 0:02:54]} 5. Nf3 {[%clk 0:02:59]}  Bg4 {[%clk 0:02:54]} 6. dxc5 {[%clk 0:02:58]}  Qxd1+ {[%clk 0:02:52]} 7. Kxd1 {[%clk 0:02:59]}  e5 {[%clk 0:02:50]} 8. b4 {[%clk 0:02:56]}  e4 {[%clk 0:02:08]} 9. h3 {[%clk 0:02:55]}  Bh5 {[%clk 0:01:49]} 10. g4 {[%clk 0:02:55]}  exf3 {[%clk 0:01:46]} 11. gxh5 {[%clk 0:02:54]}  O-O-O+ {[%clk 0:01:47]} 12. Kc2 {[%clk 0:02:54]}  Nf6 {[%clk 0:01:47]} 13. Nd2 {[%clk 0:02:52]}  Ne5 {[%clk 0:01:43]} 14. Nc4 {[%clk 0:02:52]}  Re8 {[%clk 0:01:27]} 15. Bf4 {[%clk 0:02:40]}  Nxc4 {[%clk 0:01:22]} 16. Bxc4 {[%clk 0:02:40]}  Nxh5 {[%clk 0:01:23]} 17. Be3 {[%clk 0:02:38]}  Re7 {[%clk 0:01:17]} 18. Bd5 {[%clk 0:02:36]}  f5 {[%clk 0:00:46]} 19. Bxf3 {[%clk 0:02:35]}  Nf6 {[%clk 0:00:46]} 20. Rhd1 {[%clk 0:02:28]}  Ne4 {[%clk 0:00:24]} 21. Bd4 {[%clk 0:02:27]}  Rg8 {[%clk 0:00:21]} 22. Be2 {[%clk 0:02:14]}  Rh8 {[%clk 0:00:18]} 23. Bd3 {[%clk 0:02:11]}  h5 {[%clk 0:00:15]} 24. a4 {[%clk 0:01:52]}  Rh6 {[%clk 0:00:13]} 25. a5 {[%clk 0:01:51]}  a6 {[%clk 0:00:13]} 26. Rg1 {[%clk 0:01:45]}  h4 {[%clk 0:00:10]} 27. Rae1 {[%clk 0:01:41]}  Rhe6 {[%clk 0:00:09]} 28. Bc4 {[%clk 0:01:37]}  Rh6 {[%clk 0:00:07]} 29. f3 {[%clk 0:01:33]}  Ng3 {[%clk 0:00:07]} 30. Rxe7 {[%clk 0:01:33]}  Bxe7 {[%clk 0:00:08]} 31. Bxg7 {[%clk 0:01:33]}  Rg6 {[%clk 0:00:08]} 32. Be5 {[%clk 0:01:31]}  Kd8 {[%clk 0:00:02]} 33. Bd5 {[%clk 0:01:28]}  Kc8 {[%clk 0:00:02]} 34. Kd3 {[%clk 0:01:22]}  Bd8 {[%clk 0:00:02]} 35. Bf7 {[%clk 0:01:18]}  Rg5 {[%clk 0:00:00]} 36. f4 {[%clk 0:01:18]} 1-0

[Event "December 19 Late 2023"]
[Site "https://www.chess.com"]
[Date "2023.12.19"]
[Round "5"]
[White "Kucza, Karol"]
[Black "Van Roon, Sjoerd"]
[Result "0-1"]
[Board "55"]
[TimeControl "180+1"]
[WhiteFideId "1159755"]
[BlackFideId "1051075"]
[WhiteElo "2307"]
[BlackElo "2180"]
[WhiteTeam "POL"]
[BlackTeam "NED"]
[WhiteClock "0:00:27"]
[BlackClock "0:00:27"]

1. e4 {[%clk 0:03:00]}  c5 {[%clk 0:02:56]} 2. Nf3 {[%clk 0:03:01]}  Nc6 {[%clk 0:02:56]} 3. d4 {[%clk 0:03:01]}  cxd4 {[%clk 0:02:56]} 4. Nxd4 {[%clk 0:03:02]}  Nf6 {[%clk 0:02:56]} 5. Nc3 {[%clk 0:03:03]}  e5 {[%clk 0:02:57]} 6. Ndb5 {[%clk 0:03:03]}  d6 {[%clk 0:02:57]} 7. Bg5 {[%clk 0:03:03]}  a6 {[%clk 0:02:57]} 8. Na3 {[%clk 0:03:03]}  b5 {[%clk 0:02:58]} 9. Nab1 {[%clk 0:03:03]}  Be7 {[%clk 0:02:51]} 10. Bxf6 {[%clk 0:03:04]}  Bxf6 {[%clk 0:02:51]} 11. a4 {[%clk 0:03:04]}  b4 {[%clk 0:02:43]} 12. Nd5 {[%clk 0:03:05]}  O-O {[%clk 0:02:41]} 13. Nd2 {[%clk 0:03:03]}  a5 {[%clk 0:02:39]} 14. Nc4 {[%clk 0:02:53]}  Bg5 {[%clk 0:02:29]} 15. Bd3 {[%clk 0:02:53]}  Be6 {[%clk 0:02:22]} 16. Nce3 {[%clk 0:02:41]}  Bxe3 {[%clk 0:02:21]} 17. Nxe3 {[%clk 0:02:42]}  Ne7 {[%clk 0:02:17]} 18. O-O {[%clk 0:02:42]}  g6 {[%clk 0:02:10]} 19. Bc4 {[%clk 0:02:23]}  Qc8 {[%clk 0:02:00]} 20. b3 {[%clk 0:02:15]}  Rd8 {[%clk 0:01:59]} 21. Qd3 {[%clk 0:02:10]}  Nc6 {[%clk 0:01:53]} 22. Bd5 {[%clk 0:01:50]}  Bxd5 {[%clk 0:01:44]} 23. Nxd5 {[%clk 0:01:51]}  Qb7 {[%clk 0:01:36]} 24. c3 {[%clk 0:01:42]}  bxc3 {[%clk 0:01:33]} 25. Qxc3 {[%clk 0:01:43]}  Nd4 {[%clk 0:01:29]} 26. Qd3 {[%clk 0:01:25]}  Qxb3 {[%clk 0:01:20]} 27. Qxb3 {[%clk 0:01:23]}  Nxb3 {[%clk 0:01:21]} 28. Rad1 {[%clk 0:01:18]}  Nc5 {[%clk 0:01:21]} 29. f3 {[%clk 0:01:16]}  Nxa4 {[%clk 0:01:19]} 30. Ne7+ {[%clk 0:01:12]}  Kf8 {[%clk 0:01:17]} 31. Nc6 {[%clk 0:01:13]}  Rdc8 {[%clk 0:01:00]} 32. Rxd6 {[%clk 0:01:13]}  Nc3 {[%clk 0:00:53]} 33. Nxe5 {[%clk 0:01:09]}  Rc7 {[%clk 0:00:47]} 34. Ra1 {[%clk 0:00:56]}  a4 {[%clk 0:00:47]} 35. Rd7 {[%clk 0:00:44]}  Rxd7 {[%clk 0:00:42]} 36. Nxd7+ {[%clk 0:00:45]}  Ke7 {[%clk 0:00:42]} 37. Nb6 {[%clk 0:00:45]}  Ra6 {[%clk 0:00:38]} 38. Nc4 {[%clk 0:00:46]}  Nb5 {[%clk 0:00:27]} 39. Na3 {[%clk 0:00:44]}  Nxa3 {[%clk 0:00:26]} 40. Rxa3 {[%clk 0:00:45]}  Kd6 {[%clk 0:00:27]} 41. Kf2 {[%clk 0:00:42]}  Kc5 {[%clk 0:00:27]} 42. Ke3 {[%clk 0:00:41]}  Kb4 {[%clk 0:00:28]} 43. Ra1 {[%clk 0:00:42]}  Kb3 {[%clk 0:00:27]} 44. Kf4 {[%clk 0:00:32]}  Kb2 {[%clk 0:00:25]} 45. Re1 {[%clk 0:00:30]}  a3 {[%clk 0:00:26]} 46. Kg5 {[%clk 0:00:30]}  a2 {[%clk 0:00:26]} 47. Kh6 {[%clk 0:00:27]}  a1=Q {[%clk 0:00:26]} 48. Rxa1 {[%clk 0:00:27]}  Rxa1 {[%clk 0:00:25]} 49. Kxh7 {[%clk 0:00:28]}  Kc3 {[%clk 0:00:26]} 50. Kg7 {[%clk 0:00:28]}  Ra7 {[%clk 0:00:26]} 51. h4 {[%clk 0:00:28]}  Kd4 {[%clk 0:00:26]} 52. g4 {[%clk 0:00:28]}  Ke3 {[%clk 0:00:26]} 53. h5 {[%clk 0:00:29]}  gxh5 {[%clk 0:00:25]} 54. gxh5 {[%clk 0:00:30]}  Kxf3 {[%clk 0:00:26]} 55. h6 {[%clk 0:00:30]}  f5+ {[%clk 0:00:25]} 56. Kg6 {[%clk 0:00:27]}  fxe4 {[%clk 0:00:26]} 57. h7 {[%clk 0:00:27]}  Rxh7 {[%clk 0:00:26]} 58. Kxh7 {[%clk 0:00:27]}  e3 {[%clk 0:00:27]} 0-1